[Event "Late-Titled-Tuesday-Blitz-June-25-2024"]
[Site "Chess.com"]
[Date "2024.06.25"]
[Round "1"]
[White "TOCANTINS_TO"]
[Black "malakismayil"]
[Result "0-1"]
[WhiteElo "2041"]
[BlackElo "2548"]
[TimeControl "180+1"]
[EndTime "14:08:18 PDT"]
[Termination "malakismayil won by checkmate"]

1. e4 {[%clk 0:02:55.5]} 1... e5 {[%clk 0:02:59.7]} 2. Nf3 {[%clk 0:02:55.4]}
2... Nc6 {[%clk 0:02:59.8]} 3. d4 {[%clk 0:02:55.1]} 3... exd4 {[%clk
0:02:59.6]} 4. Nxd4 {[%clk 0:02:55.4]} 4... Bc5 {[%clk 0:03:00.3]} 5. Be3 {[%clk
0:02:51.6]} 5... Qf6 {[%clk 0:02:59.8]} 6. c3 {[%clk 0:02:52]} 6... Nge7 {[%clk
0:02:59.3]} 7. Bc4 {[%clk 0:02:51.8]} 7... O-O {[%clk 0:02:57.1]} 8. O-O {[%clk
0:02:47.1]} 8... b6 {[%clk 0:02:57.1]} 9. Nc2 {[%clk 0:02:43.1]} 9... Ne5 {[%clk
0:02:43.3]} 10. Be2 {[%clk 0:02:40.6]} 10... Qc6 {[%clk 0:02:24.5]} 11. f3
{[%clk 0:02:23.8]} 11... f5 {[%clk 0:02:13.8]} 12. Bxc5 {[%clk 0:02:13.8]} 12...
Qxc5+ {[%clk 0:02:12.4]} 13. Qd4 {[%clk 0:02:14]} 13... Bb7 {[%clk 0:02:06.7]}
14. Nd2 {[%clk 0:02:06.2]} 14... fxe4 {[%clk 0:01:46.2]} 15. Nxe4 {[%clk
0:01:55.3]} 15... Bxe4 {[%clk 0:01:45.3]} 16. fxe4 {[%clk 0:01:54.6]} 16... N7c6
{[%clk 0:01:36.5]} 17. Qxc5 {[%clk 0:01:53.6]} 17... bxc5 {[%clk 0:01:37.4]} 18.
b3 {[%clk 0:01:41.9]} 18... Ne7 {[%clk 0:01:31.7]} 19. Ne3 {[%clk 0:01:34.3]}
19... d6 {[%clk 0:01:31.6]} 20. Nc4 {[%clk 0:01:34.1]} 20... N7g6 {[%clk
0:01:28.9]} 21. g3 {[%clk 0:01:28.3]} 21... Rae8 {[%clk 0:01:20.6]} 22. Rxf8+
{[%clk 0:01:25.3]} 22... Kxf8 {[%clk 0:01:13.7]} 23. Rf1+ {[%clk 0:01:25.1]}
23... Ke7 {[%clk 0:01:14.2]} 24. Ne3 {[%clk 0:01:21.6]} 24... Kd8 {[%clk
0:01:08.2]} 25. Bd1 {[%clk 0:01:07.1]} 25... Ne7 {[%clk 0:01:01.4]} 26. Ng4
{[%clk 0:00:51]} 26... N7c6 {[%clk 0:00:57.8]} 27. Nxe5 {[%clk 0:00:49.8]} 27...
Nxe5 {[%clk 0:00:58.7]} 28. Bc2 {[%clk 0:00:44.3]} 28... Ke7 {[%clk 0:00:57.8]}
29. Kg2 {[%clk 0:00:44.2]} 29... Ng4 {[%clk 0:00:51.7]} 30. Rf3 {[%clk
0:00:36.6]} 30... Ne5 {[%clk 0:00:49]} 31. Rf1 {[%clk 0:00:36.1]} 31... c4
{[%clk 0:00:46.4]} 32. b4 {[%clk 0:00:32.6]} 32... Rb8 {[%clk 0:00:37.1]} 33. h3
{[%clk 0:00:30.9]} 33... a5 {[%clk 0:00:35.5]} 34. a3 {[%clk 0:00:31.2]} 34...
axb4 {[%clk 0:00:35.2]} 35. axb4 {[%clk 0:00:30.5]} 35... Ra8 {[%clk 0:00:35.4]}
36. Rc1 {[%clk 0:00:21.5]} 36... Ra2 {[%clk 0:00:33]} 37. Kf1 {[%clk 0:00:17.8]}
37... Ra3 {[%clk 0:00:23.9]} 38. Bb1 {[%clk 0:00:16.9]} 38... Ra1 {[%clk
0:00:24.2]} 39. Ke2 {[%clk 0:00:16.6]} 39... Nd3 {[%clk 0:00:23.9]} 40. Rd1
{[%clk 0:00:15.3]} 40... Ne5 {[%clk 0:00:21]} 41. Ke3 {[%clk 0:00:15.1]} 41...
Ra8 {[%clk 0:00:16.3]} 42. Bc2 {[%clk 0:00:14.8]} 42... Rf8 {[%clk 0:00:16.8]}
43. Kd4 {[%clk 0:00:13.1]} 43... Rf3 {[%clk 0:00:13.4]} 44. g4 {[%clk
0:00:04.4]} 44... Rxh3 {[%clk 0:00:13]} 45. Ra1 {[%clk 0:00:03.1]} 45... Rh2
{[%clk 0:00:11.8]} 46. Bb1 {[%clk 0:00:02.8]} 46... Rd2+ {[%clk 0:00:11.5]} 47.
Ke3 {[%clk 0:00:02.8]} 47... Rg2 {[%clk 0:00:12.3]} 48. Ra7 {[%clk 0:00:02.1]}
48... Kd7 {[%clk 0:00:12.4]} 49. Kf4 {[%clk 0:00:02.2]} 49... Rb2 {[%clk
0:00:09.3]} 50. Ba2 {[%clk 0:00:01.5]} 50... Rf2+ {[%clk 0:00:06]} 51. Ke3
{[%clk 0:00:01.1]} 51... Rf3+ {[%clk 0:00:06.9]} 52. Kd4 {[%clk 0:00:01.5]}
52... Nxg4 {[%clk 0:00:06.1]} 53. Bxc4 {[%clk 0:00:02.4]} 53... Ne5 {[%clk
0:00:06.2]} 54. Bb5+ {[%clk 0:00:03.1]} 54... Kd8 {[%clk 0:00:05.4]} 55. Ra8+
{[%clk 0:00:03.1]} 55... Ke7 {[%clk 0:00:06.1]} 56. Re8+ {[%clk 0:00:03.5]}
56... Kf7 {[%clk 0:00:06.3]} 57. Rc8 {[%clk 0:00:03.6]} 57... c6 {[%clk
0:00:05.3]} 58. Rc7+ {[%clk 0:00:03.7]} 58... Kf6 {[%clk 0:00:05.1]} 59. Bxc6
{[%clk 0:00:04.6]} 59... Rd3# {[%clk 0:00:05.1]} 0-1

[Event "Late-Titled-Tuesday-Blitz-June-25-2024"]
[Site "Chess.com"]
[Date "2024.06.25"]
[Round "1"]
[White "IngOscarArdila"]
[Black "Maus7"]
[Result "0-1"]
[WhiteElo "2373"]
[BlackElo "2658"]
[TimeControl "180+1"]
[EndTime "14:08:22 PDT"]
[Termination "Maus7 won by resignation"]

1. d4 {[%clk 0:02:53.4]} 1... Nf6 {[%clk 0:02:59.7]} 2. c4 {[%clk 0:02:53.2]}
2... e6 {[%clk 0:02:55.2]} 3. Nc3 {[%clk 0:02:53.2]} 3... Bb4 {[%clk 0:02:55.3]}
4. Qc2 {[%clk 0:02:53.6]} 4... d6 {[%clk 0:02:43.1]} 5. Bg5 {[%clk 0:02:53.1]}
5... h6 {[%clk 0:02:38.3]} 6. Bxf6 {[%clk 0:02:52.8]} 6... Qxf6 {[%clk
0:02:37.9]} 7. a3 {[%clk 0:02:51.2]} 7... Bxc3+ {[%clk 0:02:36.2]} 8. Qxc3
{[%clk 0:02:52.1]} 8... c5 {[%clk 0:02:25.3]} 9. Nf3 {[%clk 0:02:46.5]} 9... Nc6
{[%clk 0:02:24.3]} 10. e3 {[%clk 0:02:45.7]} 10... O-O {[%clk 0:02:20.8]} 11.
Rc1 {[%clk 0:02:44]} 11... cxd4 {[%clk 0:02:15.9]} 12. Nxd4 {[%clk 0:02:43.1]}
12... e5 {[%clk 0:02:08.1]} 13. Nf3 {[%clk 0:02:26.1]} 13... Qg6 {[%clk
0:01:55]} 14. g3 {[%clk 0:02:11.2]} 14... e4 {[%clk 0:01:42.3]} 15. Nd4 {[%clk
0:02:07.9]} 15... Ne5 {[%clk 0:01:39.9]} 16. Be2 {[%clk 0:02:07.4]} 16... Bh3
{[%clk 0:01:32.8]} 17. b3 {[%clk 0:01:55.7]} 17... Rac8 {[%clk 0:01:14.8]} 18.
Qd2 {[%clk 0:01:50.3]} 18... Rfd8 {[%clk 0:01:13.1]} 19. Nb5 {[%clk 0:01:45]}
19... a6 {[%clk 0:01:11.3]} 20. Nc3 {[%clk 0:01:40.9]} 20... b5 {[%clk
0:00:58.2]} 21. Nd5 {[%clk 0:01:39]} 21... Kf8 {[%clk 0:00:52.3]} 22. Nf4 {[%clk
0:01:17.7]} 22... Qf5 {[%clk 0:00:50.5]} 23. Rg1 {[%clk 0:01:12.9]} 23... Bg4
{[%clk 0:00:50.1]} 24. h3 {[%clk 0:00:58.5]} 24... Bxe2 {[%clk 0:00:49.4]} 25.
Qxe2 {[%clk 0:00:58.9]} 25... Nf3+ {[%clk 0:00:43.1]} 26. Kf1 {[%clk 0:00:58.8]}
26... Nxg1 {[%clk 0:00:39.6]} 27. Kxg1 {[%clk 0:00:58.6]} 27... d5 {[%clk
0:00:38.1]} 28. c5 {[%clk 0:00:55.8]} 28... d4 {[%clk 0:00:38.5]} 29. b4 {[%clk
0:00:54.2]} 29... d3 {[%clk 0:00:38.4]} 30. Qd2 {[%clk 0:00:54.2]} 30... g5
{[%clk 0:00:38.4]} 31. g4 {[%clk 0:00:45.2]} 31... Qe5 {[%clk 0:00:38.4]} 32.
Nh5 {[%clk 0:00:42.8]} 32... f6 {[%clk 0:00:37.4]} 33. Ng3 {[%clk 0:00:41.6]}
33... Kf7 {[%clk 0:00:36.6]} 34. Nf5 {[%clk 0:00:41.7]} 34... h5 {[%clk
0:00:36.1]} 35. Kg2 {[%clk 0:00:36]} 35... hxg4 {[%clk 0:00:35.3]} 36. hxg4
{[%clk 0:00:36.9]} 36... Rh8 {[%clk 0:00:34.1]} 37. Nd6+ {[%clk 0:00:32]} 37...
Kg6 {[%clk 0:00:34.5]} 38. Rg1 {[%clk 0:00:24.1]} 38... Rh2+ {[%clk 0:00:31.7]}
39. Kf1 {[%clk 0:00:24.4]} 39... Rch8 {[%clk 0:00:32.3]} 40. Nf5 {[%clk
0:00:17.5]} 40... Qa1+ {[%clk 0:00:30]} 41. Qe1 {[%clk 0:00:16.8]} 41... Qxe1+
{[%clk 0:00:30.1]} 42. Kxe1 {[%clk 0:00:17]} 42... Rh1 {[%clk 0:00:31]} 43. Rxh1
{[%clk 0:00:16.4]} 43... Rxh1+ {[%clk 0:00:30.7]} 44. Kd2 {[%clk 0:00:17.3]}
44... Ra1 {[%clk 0:00:30.5]} 45. Nd6 {[%clk 0:00:15]} 45... Ra2+ {[%clk
0:00:30.2]} 46. Ke1 {[%clk 0:00:15.4]} 46... Rxa3 {[%clk 0:00:24.3]} 47. Nxe4
{[%clk 0:00:15]} 47... f5 {[%clk 0:00:24.8]} 48. gxf5+ {[%clk 0:00:14.4]} 48...
Kxf5 {[%clk 0:00:25.7]} 49. Nd6+ {[%clk 0:00:14.1]} 49... Ke6 {[%clk 0:00:26]}
50. Kd2 {[%clk 0:00:13.3]} 50... Rb3 {[%clk 0:00:26.3]} 51. Ne4 {[%clk
0:00:07.9]} 51... g4 {[%clk 0:00:26.1]} 52. Ng5+ {[%clk 0:00:04]} 52... Kd5
{[%clk 0:00:24.6]} 53. e4+ {[%clk 0:00:03.2]} 53... Kd4 {[%clk 0:00:20.7]} 54.
e5 {[%clk 0:00:03.4]} 54... Rb2+ {[%clk 0:00:19.4]} 55. Kc1 {[%clk 0:00:03.1]}
55... Rc2+ {[%clk 0:00:19.5]} 56. Kd1 {[%clk 0:00:03.3]} 56... Kxe5 {[%clk
0:00:19.4]} 57. Nf7+ {[%clk 0:00:03.3]} 57... Kd5 {[%clk 0:00:19.4]} 58. Nh6
{[%clk 0:00:02.7]} 58... Rc4 {[%clk 0:00:18.5]} 59. Kd2 {[%clk 0:00:01.8]} 59...
Rf4 {[%clk 0:00:15.4]} 60. Kxd3 {[%clk 0:00:02.1]} 60... Rxb4 {[%clk 0:00:12.4]}
61. Nf5 {[%clk 0:00:01.9]} 61... Kxc5 {[%clk 0:00:12]} 62. Ne3 {[%clk
0:00:02.8]} 62... Rf4 {[%clk 0:00:11.3]} 63. Nc2 {[%clk 0:00:02]} 63... Rxf2
{[%clk 0:00:10.8]} 64. Ne3 {[%clk 0:00:02.9]} 64... Rf3 {[%clk 0:00:11.2]} 65.
Ke2 {[%clk 0:00:03.2]} 65... Rxe3+ {[%clk 0:00:11.7]} 66. Kxe3 {[%clk
0:00:04.1]} 66... a5 {[%clk 0:00:12.3]} 0-1

[Event "Late-Titled-Tuesday-Blitz-June-25-2024"]
[Site "Chess.com"]
[Date "2024.06.25"]
[Round "1"]
[White "NailBashirli"]
[Black "biostatistician"]
[Result "1-0"]
[WhiteElo "2779"]
[BlackElo "2453"]
[TimeControl "180+1"]
[EndTime "14:08:25 PDT"]
[Termination "NailBashirli won by checkmate"]

1. e4 {[%clk 0:02:57.7]} 1... e5 {[%clk 0:02:59.9]} 2. Nf3 {[%clk 0:02:50.3]}
2... Nc6 {[%clk 0:02:59.8]} 3. Bb5 {[%clk 0:02:35.6]} 3... Nf6 {[%clk 0:02:59]}
4. O-O {[%clk 0:02:34.9]} 4... Nxe4 {[%clk 0:02:58.2]} 5. Re1 {[%clk 0:02:34.4]}
5... Nd6 {[%clk 0:02:58.5]} 6. Nxe5 {[%clk 0:02:34.4]} 6... Be7 {[%clk
0:02:58.8]} 7. Bf1 {[%clk 0:02:34]} 7... Nxe5 {[%clk 0:02:57.5]} 8. Rxe5 {[%clk
0:02:34.2]} 8... O-O {[%clk 0:02:58.4]} 9. d4 {[%clk 0:02:33.8]} 9... Bf6 {[%clk
0:02:58.9]} 10. Re1 {[%clk 0:02:33.7]} 10... Nf5 {[%clk 0:02:59.2]} 11. d5
{[%clk 0:02:33.8]} 11... Re8 {[%clk 0:02:58.6]} 12. Nd2 {[%clk 0:02:30.9]} 12...
Rxe1 {[%clk 0:02:52.4]} 13. Qxe1 {[%clk 0:02:30.8]} 13... d6 {[%clk 0:02:52.2]}
14. Ne4 {[%clk 0:02:25.8]} 14... Bd4 {[%clk 0:02:51.8]} 15. a4 {[%clk
0:02:21.8]} 15... a5 {[%clk 0:02:41.1]} 16. Ra3 {[%clk 0:02:21.3]} 16... Bd7
{[%clk 0:02:35]} 17. Rf3 {[%clk 0:02:11.3]} 17... Bb6 {[%clk 0:02:25.2]} 18. Bd3
{[%clk 0:01:24.3]} 18... Qh4 {[%clk 0:02:11.9]} 19. Bg5 {[%clk 0:01:15.3]} 19...
Qh5 {[%clk 0:02:10.6]} 20. h3 {[%clk 0:00:52.1]} 20... Re8 {[%clk 0:02:05.9]}
21. g4 {[%clk 0:00:39.4]} 21... Nd4 {[%clk 0:02:05.3]} 22. Re3 {[%clk
0:00:23.9]} 22... Bxg4 {[%clk 0:01:57.4]} 23. Nf6+ {[%clk 0:00:16.3]} 23... gxf6
{[%clk 0:01:56.2]} 24. Rxe8+ {[%clk 0:00:17.2]} 24... Kg7 {[%clk 0:01:56.3]} 25.
Bxf6+ {[%clk 0:00:17.1]} 25... Kxf6 {[%clk 0:01:50.6]} 26. Qe7+ {[%clk
0:00:17.4]} 26... Kg7 {[%clk 0:01:48.9]} 27. Qf8+ {[%clk 0:00:17.7]} 27... Kf6
{[%clk 0:01:48.2]} 28. Qh8+ {[%clk 0:00:17.9]} 28... Kg5 {[%clk 0:01:45.3]} 29.
Qg7+ {[%clk 0:00:17.5]} 29... Kh4 {[%clk 0:01:37.8]} 30. Qxg4+ {[%clk
0:00:17.6]} 30... Qxg4+ {[%clk 0:01:37.8]} 31. hxg4 {[%clk 0:00:18.5]} 31...
Kxg4 {[%clk 0:01:28.7]} 32. Bxh7 {[%clk 0:00:17.9]} 32... f5 {[%clk 0:01:27.3]}
33. c3 {[%clk 0:00:15.7]} 33... Nf3+ {[%clk 0:01:23.6]} 34. Kg2 {[%clk
0:00:16.1]} 34... Ng5 {[%clk 0:01:21.1]} 35. Rg8 {[%clk 0:00:15.6]} 35... f4
{[%clk 0:01:17.9]} 36. Be4 {[%clk 0:00:13.7]} 36... f3+ {[%clk 0:00:58.4]} 37.
Bxf3+ {[%clk 0:00:13.6]} 37... Kf4 {[%clk 0:00:58.9]} 38. Rf8+ {[%clk
0:00:11.5]} 38... Ke5 {[%clk 0:00:58.8]} 39. Bg4 {[%clk 0:00:12.1]} 39... Ke4
{[%clk 0:00:48.8]} 40. Rf5 {[%clk 0:00:09.7]} 40... Nh7 {[%clk 0:00:45.5]} 41.
f3+ {[%clk 0:00:09.9]} 41... Kd3 {[%clk 0:00:42]} 42. f4 {[%clk 0:00:10.1]}
42... Kc2 {[%clk 0:00:38]} 43. Rf7 {[%clk 0:00:10]} 43... Kxb2 {[%clk
0:00:38.9]} 44. Rxh7 {[%clk 0:00:10.2]} 44... Kxc3 {[%clk 0:00:39.8]} 45. f5
{[%clk 0:00:10.6]} 45... Bd4 {[%clk 0:00:39.2]} 46. Rxc7+ {[%clk 0:00:11]} 46...
Kb4 {[%clk 0:00:39.6]} 47. Rxb7+ {[%clk 0:00:10.5]} 47... Kxa4 {[%clk
0:00:40.1]} 48. Kf3 {[%clk 0:00:10.6]} 48... Ka3 {[%clk 0:00:38.7]} 49. Ke4
{[%clk 0:00:10.8]} 49... Be5 {[%clk 0:00:38.6]} 50. Kd3 {[%clk 0:00:11.7]} 50...
a4 {[%clk 0:00:38.6]} 51. Bd1 {[%clk 0:00:11.6]} 51... Bf6 {[%clk 0:00:37.5]}
52. Ra7 {[%clk 0:00:09.9]} 52... Kb4 {[%clk 0:00:37.1]} 53. Rxa4+ {[%clk
0:00:09.9]} 53... Kc5 {[%clk 0:00:38]} 54. Ke4 {[%clk 0:00:08.2]} 54... Be5
{[%clk 0:00:37.9]} 55. Ra8 {[%clk 0:00:08]} 55... Kb6 {[%clk 0:00:34.5]} 56. Re8
{[%clk 0:00:08.9]} 56... Bc3 {[%clk 0:00:33.5]} 57. Re6 {[%clk 0:00:09]} 57...
Kc7 {[%clk 0:00:33.9]} 58. Re7+ {[%clk 0:00:07.7]} 58... Kd8 {[%clk 0:00:33.9]}
59. Rh7 {[%clk 0:00:07.3]} 59... Ke8 {[%clk 0:00:33.5]} 60. Bh5+ {[%clk
0:00:06.3]} 60... Kf8 {[%clk 0:00:33.9]} 61. Rd7 {[%clk 0:00:06.3]} 61... Be5
{[%clk 0:00:33.5]} 62. f6 {[%clk 0:00:06.6]} 62... Kg8 {[%clk 0:00:30.8]} 63.
Kf5 {[%clk 0:00:06.4]} 63... Kh8 {[%clk 0:00:28.4]} 64. Kg6 {[%clk 0:00:06.6]}
64... Bxf6 {[%clk 0:00:28.9]} 65. Kxf6 {[%clk 0:00:06.6]} 65... Kg8 {[%clk
0:00:28.3]} 66. Bg6 {[%clk 0:00:07.5]} 66... Kf8 {[%clk 0:00:28.3]} 67. Rd8#
{[%clk 0:00:08.4]} 1-0

[Event "Late-Titled-Tuesday-Blitz-June-25-2024"]
[Site "Chess.com"]
[Date "2024.06.25"]
[Round "1"]
[White "Sasha_Solovev_777"]
[Black "koncheto"]
[Result "1-0"]
[WhiteElo "2262"]
[BlackElo "2579"]
[TimeControl "180+1"]
[EndTime "14:08:26 PDT"]
[Termination "Sasha_Solovev_777 won by checkmate"]

1. e4 {[%clk 0:02:56.9]} 1... c5 {[%clk 0:02:59.7]} 2. Nf3 {[%clk 0:02:56.2]}
2... d6 {[%clk 0:03:00.2]} 3. d4 {[%clk 0:02:56.3]} 3... cxd4 {[%clk 0:03:01.1]}
4. Nxd4 {[%clk 0:02:56.5]} 4... Nf6 {[%clk 0:03:01.7]} 5. Nc3 {[%clk 0:02:57]}
5... Nc6 {[%clk 0:03:02.3]} 6. Bg5 {[%clk 0:02:54.5]} 6... e6 {[%clk 0:03:02.4]}
7. Qd2 {[%clk 0:02:52.5]} 7... a6 {[%clk 0:03:02.7]} 8. f3 {[%clk 0:02:46.1]}
8... Bd7 {[%clk 0:03:01.2]} 9. O-O-O {[%clk 0:02:43]} 9... b5 {[%clk 0:02:51.6]}
10. Nb3 {[%clk 0:02:35.3]} 10... Rc8 {[%clk 0:02:49.8]} 11. Kb1 {[%clk 0:02:29]}
11... Ne5 {[%clk 0:02:44.4]} 12. f4 {[%clk 0:02:16.9]} 12... b4 {[%clk 0:02:21]}
13. fxe5 {[%clk 0:01:45.8]} 13... bxc3 {[%clk 0:02:20.2]} 14. bxc3 {[%clk
0:01:27.4]} 14... Nxe4 {[%clk 0:01:55.2]} 15. Bxd8 {[%clk 0:01:19.8]} 15...
Nxd2+ {[%clk 0:01:55.4]} 16. Rxd2 {[%clk 0:01:20.7]} 16... Rxd8 {[%clk
0:01:55.3]} 17. exd6 {[%clk 0:01:21]} 17... Bb5 {[%clk 0:01:55.4]} 18. c4 {[%clk
0:01:16.1]} 18... Bc6 {[%clk 0:01:52]} 19. c5 {[%clk 0:01:14.5]} 19... f6 {[%clk
0:01:52.4]} 20. Bxa6 {[%clk 0:01:13]} 20... Kf7 {[%clk 0:01:52]} 21. Re1 {[%clk
0:00:55.1]} 21... e5 {[%clk 0:01:46.9]} 22. Bc4+ {[%clk 0:00:53.8]} 22... Kg6
{[%clk 0:01:45.9]} 23. Bd5 {[%clk 0:00:52.8]} 23... Rc8 {[%clk 0:01:42.4]} 24.
Red1 {[%clk 0:00:42.4]} 24... Ba4 {[%clk 0:01:36.6]} 25. Bb7 {[%clk 0:00:30.5]}
25... Rb8 {[%clk 0:01:12]} 26. c6 {[%clk 0:00:27.2]} 26... Bxc6 {[%clk
0:01:10.2]} 27. Bxc6 {[%clk 0:00:26.8]} 27... Rb6 {[%clk 0:01:10.9]} 28. Be8+
{[%clk 0:00:25]} 28... Kh6 {[%clk 0:01:06.2]} 29. d7 {[%clk 0:00:24.4]} 29...
Be7 {[%clk 0:01:06.8]} 30. d8=Q {[%clk 0:00:23.4]} 30... Bxd8 {[%clk 0:01:07.3]}
31. Rxd8 {[%clk 0:00:23.6]} 31... e4 {[%clk 0:01:08.2]} 32. Ba4 {[%clk
0:00:15.5]} 32... Rxd8 {[%clk 0:01:05.5]} 33. Rxd8 {[%clk 0:00:16.4]} 33... Re6
{[%clk 0:01:05.1]} 34. Rd1 {[%clk 0:00:15.2]} 34... f5 {[%clk 0:01:05.3]} 35. g3
{[%clk 0:00:14.3]} 35... g5 {[%clk 0:01:05.2]} 36. Bd7 {[%clk 0:00:13.4]} 36...
Re5 {[%clk 0:01:04.6]} 37. Rf1 {[%clk 0:00:12.7]} 37... e3 {[%clk 0:01:04.7]}
38. Re1 {[%clk 0:00:11.9]} 38... f4 {[%clk 0:01:04.9]} 39. Nd4 {[%clk
0:00:11.1]} 39... Re4 {[%clk 0:00:44.2]} 40. Nf3 {[%clk 0:00:08]} 40... Re7
{[%clk 0:00:34.8]} 41. Bg4 {[%clk 0:00:07]} 41... Kg6 {[%clk 0:00:35.4]} 42.
gxf4 {[%clk 0:00:07]} 42... gxf4 {[%clk 0:00:36.3]} 43. c4 {[%clk 0:00:05.4]}
43... h5 {[%clk 0:00:36.8]} 44. Bh3 {[%clk 0:00:05.4]} 44... Rc7 {[%clk
0:00:36.4]} 45. Bf1 {[%clk 0:00:04.6]} 45... Kf5 {[%clk 0:00:36.2]} 46. Kc2
{[%clk 0:00:04.7]} 46... Ke4 {[%clk 0:00:35.9]} 47. Be2 {[%clk 0:00:05.4]} 47...
Ra7 {[%clk 0:00:35.5]} 48. Kb3 {[%clk 0:00:05.4]} 48... Rb7+ {[%clk 0:00:35.8]}
49. Kc3 {[%clk 0:00:05.8]} 49... Ra7 {[%clk 0:00:35.7]} 50. Ra1 {[%clk
0:00:06.1]} 50... Rg7 {[%clk 0:00:32.7]} 51. a4 {[%clk 0:00:06.1]} 51... Rg2
{[%clk 0:00:33.3]} 52. Ra2 {[%clk 0:00:06.8]} 52... Rxe2 {[%clk 0:00:30]} 53.
Rxe2 {[%clk 0:00:07.7]} 53... Kxf3 {[%clk 0:00:30.9]} 54. Re1 {[%clk 0:00:07.3]}
54... Kf2 {[%clk 0:00:31.3]} 55. Ra1 {[%clk 0:00:06]} 55... f3 {[%clk
0:00:26.5]} 56. a5 {[%clk 0:00:05.9]} 56... e2 {[%clk 0:00:27.1]} 57. a6 {[%clk
0:00:06.3]} 57... e1=Q+ {[%clk 0:00:27.1]} 58. Rxe1 {[%clk 0:00:06.6]} 58...
Kxe1 {[%clk 0:00:28]} 59. a7 {[%clk 0:00:07.3]} 59... f2 {[%clk 0:00:28.9]} 60.
a8=Q {[%clk 0:00:08]} 60... f1=Q {[%clk 0:00:29.6]} 61. Qe4+ {[%clk 0:00:08.6]}
61... Qe2 {[%clk 0:00:24.4]} 62. Qxe2+ {[%clk 0:00:07.2]} 62... Kxe2 {[%clk
0:00:25]} 63. c5 {[%clk 0:00:08.1]} 63... h4 {[%clk 0:00:25.6]} 64. c6 {[%clk
0:00:09]} 64... h3 {[%clk 0:00:26.2]} 65. c7 {[%clk 0:00:09.9]} 65... Kf3 {[%clk
0:00:27.1]} 66. c8=Q {[%clk 0:00:10.7]} 66... Kg2 {[%clk 0:00:28]} 67. Qc7
{[%clk 0:00:10.5]} 67... Kh1 {[%clk 0:00:28.4]} 68. Qe5 {[%clk 0:00:09.9]} 68...
Kg2 {[%clk 0:00:28.7]} 69. Kd2 {[%clk 0:00:10.1]} 69... Kh1 {[%clk 0:00:29.2]}
70. Ke2 {[%clk 0:00:10.2]} 70... Kg2 {[%clk 0:00:30.1]} 71. Qg3+ {[%clk
0:00:09.8]} 71... Kh1 {[%clk 0:00:31]} 72. Qxh3 {[%clk 0:00:09.5]} 72... Kg1
{[%clk 0:00:31.7]} 73. Qh6 {[%clk 0:00:08.9]} 73... Kg2 {[%clk 0:00:32]} 74. h4
{[%clk 0:00:09.3]} 74... Kg3 {[%clk 0:00:32.5]} 75. h5 {[%clk 0:00:10]} 75...
Kg2 {[%clk 0:00:33.4]} 76. Qg6+ {[%clk 0:00:10.6]} 76... Kh1 {[%clk 0:00:34.3]}
77. h6 {[%clk 0:00:11.3]} 77... Kh2 {[%clk 0:00:35.1]} 78. h7 {[%clk 0:00:11.8]}
78... Kh1 {[%clk 0:00:36]} 79. h8=Q# {[%clk 0:00:12]} 1-0